[Event "World Prestigious University 2019"]
[Site "Tianjin"]
[Date "2019.11.28"]
[Round "7.10"]
[White "Kukhmazov, Arsen"]
[Black "Daniel, Karim Abbas"]
[Result "1-0"]
[WhiteElo "2377"]
[BlackElo "2251"]
[PlyCount "65"]
[EventDate "2019.11.26"]
[EventType "team-tourn"]
[EventCountry "CHN"]
[TimeControl "1500+10"]
[WhiteClock "0:04:36"]
[BlackClock "0:12:25"]

1. d4 {[%emt 0:00:00]} Nf6 {[%emt 0:00:00]} 2. c4 {[%emt 0:00:00]} e6 {[%emt 0:00:00]} 3. Nf3 {[%emt 0:00:00]} c5 {[%emt 0:00:00]} 4. d5 {[%emt 0:00:00]} exd5 {[%emt 0:00:00]} 5. cxd5 {[%emt 0:00:00]} d6 {[%emt 0:00:00]} 6. Nc3 {[%emt 0:00:00]} g6 {[%emt 0:00:00]} 7. Nd2 {[%emt 0:00:02]} Bg7 {[%emt 0:00:36]} 8. e4 {[%emt 0:00:00]} O-O {[%emt 0:00:08]} 9. Be2 {[%emt 0:00:04]} Re8 {[%emt 0:00:15]} 10. O-O {[%emt 0:00:02]} Nbd7 {[%emt 0:00:02]} 11. a4 {[%emt 0:00:06]} a6 {[%emt 0:01:05]} 12. h3 {[%emt 0:00:10]} Rb8 {[%emt 0:02:13]} 13. Ra3 {[%emt 0:00:08]} Qc7 {[%emt 0:03:11]} 14. a5 {[%emt 0:00:04]} b5 {[%emt 0:01:03]} 15. axb6 {[%emt 0:00:01]} Rxb6 {[%emt 0:00:17]} 16. Qc2 {[%emt 0:00:02]} Nb8 {[%emt 0:04:11]} 17. Nc4 {[%emt 0:00:39]} Rb4 {[%emt 0:00:12]} 18. Bf4 {[%emt 0:00:05]} Bf8 {[%emt 0:01:34]} 19. f3 {[%emt 0:03:28]} Bd7 {[%emt 0:01:34]} 20. Na2 {[%emt 0:00:50]} Rb7 {[%emt 0:00:37]} 21. Na5 {[%emt 0:00:40]} Rb6 {[%emt 0:00:02]} 22. b4 {[%emt 0:06:57]} Bb5 {[%emt 0:00:58]} 23. bxc5 {[%emt 0:00:35]} Bxe2 {[%emt 0:01:09]} 24. Qxe2 {[%emt 0:00:01]} Qxc5+ {[%emt 0:00:05]} 25. Qe3 {[%emt 0:00:00]} Qb5 {[%emt 0:01:27]} 26. Nc3 {[%emt 0:01:50]} Qb4 {[%emt 0:01:33]} 27. Rb3 {[%emt 0:01:14]} Qxb3 {[%emt 0:00:10]} 28. Nxb3 {[%emt 0:00:01]} Rxb3 {[%emt 0:00:01]} 29. Qd2 {[%emt 0:00:14]} Rc8 {[%emt 0:01:04]} 30. Ne2 {[%emt 0:00:11]} Nh5 {[%emt 0:00:20]} 31. Bh2 {[%emt 0:00:33]} Bg7 {[%emt 0:00:56]} 32. Rc1 {[%emt 0:00:07]} Rxc1+ {[%emt 0:01:01]} 33. Qxc1 {[%emt 0:00:01]} 1-0

[Event "World Prestigious University 2019"]
[Site "Tianjin"]
[Date "2019.11.28"]
[Round "7.11"]
[White "Mihov, Filip"]
[Black "Tarasov, Alexandr"]
[Result "1/2-1/2"]
[WhiteElo "2191"]
[BlackElo "2348"]
[PlyCount "133"]
[EventDate "2019.11.26"]
[EventType "team-tourn"]
[EventCountry "CHN"]
[TimeControl "1500+10"]
[WhiteClock "0:01:04"]
[BlackClock "0:01:15"]

1. e4 {[%emt 0:00:00]} c6 {[%emt 0:01:24]} 2. d4 {[%emt 0:00:00]} d5 {[%emt 0:00:01]} 3. exd5 {[%emt 0:00:08]} cxd5 {[%emt 0:00:02]} 4. Bd3 {[%emt 0:00:05]} Nc6 {[%emt 0:00:12]} 5. c3 {[%emt 0:00:03]} Nf6 {[%emt 0:00:45]} 6. h3 {[%emt 0:00:04]} g6 {[%emt 0:00:09]} 7. Nf3 {[%emt 0:00:02]} Bg7 {[%emt 0:00:07]} 8. O-O {[%emt 0:00:04]} O-O {[%emt 0:00:05]} 9. Bf4 {[%emt 0:00:25]} Bf5 {[%emt 0:00:03]} 10. Ne1 {[%emt 0:00:06]} Ne4 {[%emt 0:01:44]} 11. Nd2 {[%emt 0:00:48]} e5 {[%emt 0:01:27]} 12. dxe5 {[%emt 0:00:53]} Nxe5 {[%emt 0:00:09]} 13. Bc2 {[%emt 0:01:40]} Rc8 {[%emt 0:02:47]} 14. Nxe4 {[%emt 0:06:39]} Bxe4 {[%emt 0:06:28]} 15. Rb1 {[%emt 0:02:23]} Nc4 {[%emt 0:03:32]} 16. Bxe4 {[%emt 0:02:23]} dxe4 {[%emt 0:00:03]} 17. Nc2 {[%emt 0:00:01]} Qb6 {[%emt 0:04:11]} 18. b3 {[%emt 0:00:19]} Ne5 {[%emt 0:00:36]} 19. c4 {[%emt 0:00:26]} Nd3 {[%emt 0:00:16]} 20. Be3 {[%emt 0:02:14]} Qa5 {[%emt 0:00:02]} 21. a3 {[%emt 0:01:20]} Rfd8 {[%emt 0:00:39]} 22. Qe2 {[%emt 0:00:07]} a6 {[%emt 0:00:58]} 23. Rfd1 {[%emt 0:02:57]} Qc3 {[%emt 0:00:38]} 24. Ne1 {[%emt 0:00:28]} b5 {[%emt 0:00:49]} 25. cxb5 {[%emt 0:01:25]} axb5 {[%emt 0:00:04]} 26. Nxd3 {[%emt 0:00:05]} exd3 {[%emt 0:00:08]} 27. Qf3 {[%emt 0:00:05]} Qa5 {[%emt 0:01:30]} 28. Bg5 {[%emt 0:00:21]} Re8 {[%emt 0:00:22]} 29. Rxd3 {[%emt 0:00:27]} b4 {[%emt 0:00:13]} 30. Rd7 {[%emt 0:00:23]} Rf8 {[%emt 0:00:14]} 31. Be7 {[%emt 0:00:07]} bxa3 {[%emt 0:00:01]} 32. Bxf8 {[%emt 0:00:04]} Rxf8 {[%emt 0:00:02]} 33. Rdd1 {[%emt 0:02:57]} a2 {[%emt 0:00:09]} 34. Ra1 {[%emt 0:00:01]} Bxa1 {[%emt 0:00:14]} 35. Rxa1 {[%emt 0:00:01]} Qa3 {[%emt 0:00:23]} 36. Qe2 {[%emt 0:00:13]} Ra8 {[%emt 0:00:11]} 37. Qc2 {[%emt 0:00:16]} h5 {[%emt 0:00:01]} 38. h4 {[%emt 0:00:10]} Qa7 {[%emt 0:00:03]} 39. b4 {[%emt 0:00:11]} Qd4 {[%emt 0:00:27]} 40. Rxa2 {[%emt 0:00:03]} Re8 {[%emt 0:00:12]} 41. Qd2 {[%emt 0:00:44]} Qxh4 {[%emt 0:00:03]} 42. Rb2 {[%emt 0:00:21]} Ra8 {[%emt 0:00:05]} 43. Rb1 {[%emt 0:00:19]} Qe4 {[%emt 0:00:13]} 44. Qe1 {[%emt 0:00:07]} Qxe1+ {[%emt 0:00:13]} 45. Rxe1 {[%emt 0:00:01]} Rb8 {[%emt 0:00:01]} 46. Rb1 {[%emt 0:00:01]} Kf8 {[%emt 0:00:06]} 47. Kh2 {[%emt 0:00:06]} Ke7 {[%emt 0:00:02]} 48. Kg3 {[%emt 0:00:01]} Kd6 {[%emt 0:00:20]} 49. Kf4 {[%emt 0:00:28]} Rb5 {[%emt 0:00:05]} 50. g3 {[%emt 0:00:19]} Kd5 {[%emt 0:00:09]} 51. g4 {[%emt 0:00:27]} h4 {[%emt 0:00:21]} 52. g5 {[%emt 0:00:05]} Kc4 {[%emt 0:00:07]} 53. Kg4 {[%emt 0:00:01]} Rxb4 {[%emt 0:00:18]} 54. Rxb4+ {[%emt 0:00:09]} Kxb4 {[%emt 0:00:01]} 55. Kxh4 {[%emt 0:00:01]} Kc4 {[%emt 0:00:06]} 56. Kg4 {[%emt 0:00:01]} Kd3 {[%emt 0:00:22]} 57. f4 {[%emt 0:00:14]} Ke4 {[%emt 0:00:11]} 58. Kg3 {[%emt 0:00:01]} Ke3 {[%emt 0:00:03]} 59. Kg4 {[%emt 0:00:01]} Kf2 {[%emt 0:00:14]} 60. f5 {[%emt 0:00:11]} Ke3 {[%emt 0:00:17]} 61. fxg6 {[%emt 0:00:13]} fxg6 {[%emt 0:00:01]} 62. Kg3 {[%emt 0:00:14]} Ke4 {[%emt 0:00:03]} 63. Kg4 {[%emt 0:00:02]} Ke5 {[%emt 0:00:00]} 64. Kg3 {[%emt 0:00:08]} Kf5 {[%emt 0:00:02]} 65. Kh4 {[%emt 0:00:15]} Kf4 {[%emt 0:00:03]} 66. Kh3 {[%emt 0:00:00]} Kxg5 {[%emt 0:00:09]} 67. Kg3 {[%emt 0:00:01]} 1/2-1/2

[Event "World Prestigious University 2019"]
[Site "Tianjin"]
[Date "2019.11.28"]
[Round "7.13"]
[White "Green, Michael L"]
[Black "Li, Ethan"]
[Result "0-1"]
[WhiteElo "2073"]
[BlackElo "2209"]
[PlyCount "96"]
[EventDate "2019.11.26"]
[EventType "team-tourn"]
[EventCountry "CHN"]
[TimeControl "1500+10"]
[WhiteClock "0:02:34"]
[BlackClock "0:00:17"]

1. Nf3 {[%emt 0:00:00]} d5 {[%emt 0:00:00]} 2. c4 {[%emt 0:00:00]} c6 {[%emt 0:00:00]} 3. b3 {[%emt 0:00:00]} Nf6 {[%emt 0:00:12]} 4. g3 {[%emt 0:00:00]} Bg4 {[%emt 0:00:03]} 5. Bg2 {[%emt 0:00:00]} Nbd7 {[%emt 0:00:04]} 6. Bb2 {[%emt 0:00:11]} e6 {[%emt 0:00:02]} 7. O-O {[%emt 0:00:03]} Bd6 {[%emt 0:01:17]} 8. d3 {[%emt 0:00:12]} O-O {[%emt 0:00:14]} 9. Nbd2 {[%emt 0:00:08]} Qc7 {[%emt 0:00:21]} 10. Rc1 {[%emt 0:00:16]} Rad8 {[%emt 0:00:40]} 11. Rc2 {[%emt 0:00:13]} a5 {[%emt 0:01:55]} 12. a3 {[%emt 0:00:14]} Qb8 {[%emt 0:01:57]} 13. Qa1 {[%emt 0:00:16]} Rfe8 {[%emt 0:00:39]} 14. Rfc1 {[%emt 0:01:08]} e5 {[%emt 0:03:14]} 15. cxd5 {[%emt 0:00:20]} cxd5 {[%emt 0:00:14]} 16. e4 {[%emt 0:03:59]} dxe4 {[%emt 0:00:52]} 17. Nxe4 {[%emt 0:00:36]} Nxe4 {[%emt 0:00:25]} 18. dxe4 {[%emt 0:00:04]} Be6 {[%emt 0:01:12]} 19. b4 {[%emt 0:01:52]} axb4 {[%emt 0:03:08]} 20. axb4 {[%emt 0:00:02]} Bxb4 {[%emt 0:00:20]} 21. Nxe5 {[%emt 0:01:34]} f6 {[%emt 0:00:52]} 22. Nd3 {[%emt 0:02:46]} Bd6 {[%emt 0:00:19]} 23. Bd4 {[%emt 0:01:17]} Rc8 {[%emt 0:01:14]} 24. Nc5 {[%emt 0:01:29]} Bxc5 {[%emt 0:02:25]} 25. Bxc5 {[%emt 0:00:09]} Qc7 {[%emt 0:00:05]} 26. Qa3 {[%emt 0:04:48]} b6 {[%emt 0:00:28]} 27. Bxb6 {[%emt 0:00:21]} Qxc2 {[%emt 0:00:02]} 28. Rxc2 {[%emt 0:00:02]} Rxc2 {[%emt 0:00:01]} 29. Be3 {[%emt 0:00:17]} Ra2 {[%emt 0:00:36]} 30. Qc3 {[%emt 0:00:16]} Ne5 {[%emt 0:00:01]} 31. Bd4 {[%emt 0:03:20]} Rc8 {[%emt 0:01:03]} 32. Qe3 {[%emt 0:01:54]} Rac2 {[%emt 0:00:54]} 33. h4 {[%emt 0:00:28]} Nc4 {[%emt 0:00:56]} 34. Qf4 {[%emt 0:00:12]} Rd8 {[%emt 0:01:20]} 35. e5 {[%emt 0:00:24]} Rd2 {[%emt 0:00:27]} 36. Bc3 {[%emt 0:00:29]} R2d3 {[%emt 0:00:02]} 37. exf6 {[%emt 0:00:58]} Rxc3 {[%emt 0:00:05]} 38. Qc7 {[%emt 0:00:25]} Rd1+ {[%emt 0:00:19]} 39. Kh2 gxf6 {[%emt 0:00:10]} 40. Qe7 {[%emt 0:00:08]} Bf7 {[%emt 0:01:07]} 41. Be4 {[%emt 0:00:16]} Kg7 {[%emt 0:00:30]} 42. Bxh7 {[%emt 0:00:18]} Ne5 {[%emt 0:00:01]} 43. Be4 {[%emt 0:00:22]} Re1 {[%emt 0:00:02]} 44. Qb7 {[%emt 0:00:11]} Rb3 {[%emt 0:00:26]} 45. Qa8 {[%emt 0:00:11]} Rb2 {[%emt 0:00:01]} 46. Kg2 {[%emt 0:00:20]} Ree2 {[%emt 0:00:02]} 47. Qa3 {[%emt 0:00:10]} Rxf2+ {[%emt 0:00:07]} 48. Kh1 {[%emt 0:00:04]} Rf1# {[%emt 0:00:02]} 0-1

[Event "World Prestigious University 2019"]
[Site "Tianjin"]
[Date "2019.11.28"]
[Round "7.16"]
[White "Wang, Yue"]
[Black "Bibby, Simon"]
[Result "1-0"]
[WhiteElo "2674"]
[BlackElo "2167"]
[PlyCount "129"]
[EventDate "2019.11.26"]
[EventType "team-tourn"]
[EventCountry "CHN"]
[TimeControl "1500+10"]
[WhiteClock "0:04:32"]
[BlackClock "0:01:45"]

1. d4 {[%emt 0:00:01]} d6 {[%emt 0:00:00]} 2. Nf3 {[%emt 0:00:13]} Nf6 {[%emt 0:00:01]} 3. c4 {[%emt 0:00:04]} g6 {[%emt 0:00:01]} 4. Nc3 {[%emt 0:00:01]} Bg7 {[%emt 0:00:02]} 5. e4 {[%emt 0:00:05]} O-O {[%emt 0:00:01]} 6. h3 {[%emt 0:00:04]} e5 {[%emt 0:00:04]} 7. d5 {[%emt 0:00:04]} Nh5 {[%emt 0:00:05]} 8. g3 {[%emt 0:00:21]} f5 {[%emt 0:01:12]} 9. exf5 {[%emt 0:00:13]} gxf5 {[%emt 0:00:02]} 10. Ng5 {[%emt 0:00:15]} Qe8 {[%emt 0:01:51]} 11. Be2 {[%emt 0:00:47]} Nf6 {[%emt 0:00:13]} 12. Be3 {[%emt 0:00:03]} Na6 {[%emt 0:00:17]} 13. Qd2 {[%emt 0:00:10]} Nc5 {[%emt 0:01:09]} 14. O-O-O {[%emt 0:00:08]} h6 {[%emt 0:00:46]} 15. Nf3 {[%emt 0:00:09]} Nfe4 {[%emt 0:00:14]} 16. Nxe4 {[%emt 0:00:18]} Nxe4 {[%emt 0:00:02]} 17. Qc2 {[%emt 0:00:03]} c6 {[%emt 0:03:03]} 18. g4 {[%emt 0:08:22]} cxd5 {[%emt 0:01:26]} 19. Rxd5 {[%emt 0:00:03]} Be6 {[%emt 0:00:29]} 20. Ra5 {[%emt 0:03:51]} b6 {[%emt 0:00:49]} 21. Ra3 {[%emt 0:00:50]} Rc8 {[%emt 0:01:56]} 22. gxf5 {[%emt 0:06:09]} Bxf5 {[%emt 0:00:09]} 23. Bd3 {[%emt 0:02:23]} d5 {[%emt 0:00:03]} 24. Rg1 {[%emt 0:00:02]} a5 {[%emt 0:10:37]} 25. Bxh6 {[%emt 0:00:37]} Rf7 {[%emt 0:00:01]} 26. Qe2 {[%emt 0:01:12]} Qe6 {[%emt 0:00:09]} 27. Bxg7 {[%emt 0:00:57]} Rxg7 {[%emt 0:00:01]} 28. Rxg7+ {[%emt 0:00:01]} Kxg7 {[%emt 0:00:01]} 29. Nd2 {[%emt 0:00:39]} Qh6 {[%emt 0:00:11]} 30. Bxe4 {[%emt 0:00:23]} Rxc4+ {[%emt 0:00:20]} 31. Qxc4 {[%emt 0:00:23]} dxc4 {[%emt 0:00:04]} 32. Bxf5 {[%emt 0:00:19]} b5 {[%emt 0:00:10]} 33. Rg3+ {[%emt 0:00:17]} Kf7 {[%emt 0:00:09]} 34. Be4 {[%emt 0:00:10]} Ke7 {[%emt 0:00:10]} 35. Kc2 {[%emt 0:00:04]} Qb6 {[%emt 0:00:15]} 36. Re3 {[%emt 0:00:08]} Qd4 {[%emt 0:00:09]} 37. Bf3 {[%emt 0:00:15]} Kd6 {[%emt 0:00:24]} 38. Be2 {[%emt 0:00:09]} a4 {[%emt 0:00:46]} 39. a3 {[%emt 0:00:13]} Kc7 {[%emt 0:00:11]} 40. Nf3 {[%emt 0:00:29]} Qd7 {[%emt 0:00:16]} 41. Rxe5 {[%emt 0:00:08]} Qh7+ {[%emt 0:00:10]} 42. Kc1 {[%emt 0:00:13]} Qh6+ {[%emt 0:00:17]} 43. Ng5 {[%emt 0:00:09]} Qf6 {[%emt 0:00:06]} 44. Ne6+ {[%emt 0:00:18]} Kd6 {[%emt 0:00:06]} 45. f4 {[%emt 0:00:01]} Qh4 {[%emt 0:00:09]} 46. Kd2 {[%emt 0:00:11]} Qxh3 {[%emt 0:00:05]} 47. Nd4 {[%emt 0:00:05]} Qh2 {[%emt 0:00:09]} 48. Nxb5+ {[%emt 0:00:04]} Kc6 {[%emt 0:00:06]} 49. Nd4+ {[%emt 0:00:05]} Kd6 {[%emt 0:00:01]} 50. Nf5+ {[%emt 0:00:08]} Kc6 {[%emt 0:00:02]} 51. Re4 {[%emt 0:00:04]} Qf2 {[%emt 0:00:31]} 52. Rxc4+ {[%emt 0:00:05]} Kd5 {[%emt 0:00:06]} 53. Ne3+ {[%emt 0:00:03]} Ke6 {[%emt 0:00:07]} 54. Rxa4 {[%emt 0:00:02]} Qg1 {[%emt 0:00:16]} 55. f5+ {[%emt 0:00:06]} Ke5 {[%emt 0:00:02]} 56. Ra5+ {[%emt 0:00:31]} Kf4 {[%emt 0:00:18]} 57. Ra4+ {[%emt 0:00:02]} Ke5 {[%emt 0:00:01]} 58. Rg4 {[%emt 0:00:03]} Qa1 {[%emt 0:00:06]} 59. Nd1 {[%emt 0:00:25]} Kxf5 {[%emt 0:00:03]} 60. Kc2 {[%emt 0:00:11]} Ke5 {[%emt 0:00:11]} 61. Bc4 {[%emt 0:00:04]} Kd6 {[%emt 0:00:12]} 62. Rg1 {[%emt 0:00:06]} Kc5 {[%emt 0:00:04]} 63. Bb3 {[%emt 0:00:02]} Kb6 {[%emt 0:00:10]} 64. Rf1 {[%emt 0:00:02]} Kc5 {[%emt 0:00:01]} 65. Ne3 {[%emt 0:00:02]} 1-0

[Event "World Prestigious University 2019"]
[Site "Tianjin"]
[Date "2019.11.28"]
[Round "7.17"]
[White "Hirao, Satoshi"]
[Black "Li, Yankai"]
[Result "0-1"]
[WhiteElo "1958"]
[BlackElo "2432"]
[PlyCount "92"]
[EventDate "2019.11.26"]
[EventType "team-tourn"]
[EventCountry "CHN"]
[TimeControl "1500+10"]
[WhiteClock "0:06:32"]
[BlackClock "0:00:43"]

1. e4 {[%emt 0:00:00]} c5 {[%emt 0:00:00]} 2. Nf3 {[%emt 0:00:00]} d6 {[%emt 0:00:00]} 3. d4 {[%emt 0:00:00]} cxd4 {[%emt 0:00:00]} 4. Nxd4 {[%emt 0:00:00]} Nf6 {[%emt 0:00:00]} 5. Nc3 {[%emt 0:00:02]} a6 {[%emt 0:00:00]} 6. Bg5 {[%emt 0:00:04]} e6 {[%emt 0:00:00]} 7. f4 {[%emt 0:00:02]} h6 {[%emt 0:00:01]} 8. Bh4 {[%emt 0:00:05]} Qb6 {[%emt 0:00:02]} 9. a3 {[%emt 0:00:12]} Be7 {[%emt 0:00:01]} 10. Bf2 {[%emt 0:00:05]} Qc7 {[%emt 0:00:02]} 11. Qf3 {[%emt 0:00:06]} Nbd7 {[%emt 0:00:02]} 12. O-O-O {[%emt 0:00:11]} b5 {[%emt 0:00:02]} 13. g4 {[%emt 0:00:12]} g5 {[%emt 0:01:21]} 14. Qh3 {[%emt 0:08:45]} h5 {[%emt 0:11:17]} 15. fxg5 {[%emt 0:01:22]} Nxg4 {[%emt 0:00:06]} 16. g6 {[%emt 0:01:39]} Nde5 {[%emt 0:02:31]} 17. gxf7+ {[%emt 0:02:54]} Nxf7 {[%emt 0:00:11]} 18. Bh4 {[%emt 0:02:05]} Bxh4 {[%emt 0:02:11]} 19. Qxh4 {[%emt 0:00:01]} Qe7 {[%emt 0:00:01]} 20. Qxe7+ {[%emt 0:00:28]} Kxe7 {[%emt 0:00:02]} 21. Rd2 {[%emt 0:00:36]} Bd7 {[%emt 0:00:10]} 22. Nd1 {[%emt 0:00:28]} Rab8 {[%emt 0:00:47]} 23. h3 {[%emt 0:00:02]} Nge5 {[%emt 0:00:12]} 24. Ne3 {[%emt 0:00:25]} a5 {[%emt 0:00:02]} 25. Be2 {[%emt 0:02:04]} b4 {[%emt 0:00:18]} 26. axb4 {[%emt 0:00:41]} axb4 {[%emt 0:00:03]} 27. Nb3 {[%emt 0:00:22]} Ng5 {[%emt 0:00:33]} 28. Rd4 {[%emt 0:01:23]} Nc6 {[%emt 0:00:36]} 29. Rc4 {[%emt 0:00:26]} Nf7 {[%emt 0:00:01]} 30. Nd4 {[%emt 0:00:17]} Nfe5 {[%emt 0:01:47]} 31. Nxc6+ {[%emt 0:00:02]} Bxc6 {[%emt 0:00:01]} 32. Rd4 {[%emt 0:00:03]} b3 {[%emt 0:00:46]} 33. Rg1 {[%emt 0:01:46]} bxc2 {[%emt 0:00:12]} 34. Kxc2 {[%emt 0:00:03]} Rhg8 {[%emt 0:01:51]} 35. Rxg8 {[%emt 0:00:18]} Rxg8 {[%emt 0:00:06]} 36. Bxh5 {[%emt 0:00:06]} Rg3 {[%emt 0:00:11]} 37. Ng4 {[%emt 0:02:22]} Nf3 {[%emt 0:00:19]} 38. Rc4 {[%emt 0:00:17]} Rxh3 {[%emt 0:00:03]} 39. Rxc6 {[%emt 0:00:17]} Nd4+ {[%emt 0:00:01]} 40. Kd2 {[%emt 0:00:11]} Nxc6 {[%emt 0:00:02]} 41. Bg6 {[%emt 0:00:43]} Rg3 {[%emt 0:00:01]} 42. Bh5 {[%emt 0:00:06]} Nb4 {[%emt 0:00:03]} 43. Nf2 {[%emt 0:00:08]} Kf6 {[%emt 0:00:03]} 44. Bd1 {[%emt 0:00:15]} Ke5 {[%emt 0:00:02]} 45. Ba4 {[%emt 0:00:12]} Kd4 {[%emt 0:00:07]} 46. Bd7 {[%emt 0:00:11]} Rg2 {[%emt 0:00:01]} 0-1

[Event "World Prestigious University 2019"]
[Site "Tianjin"]
[Date "2019.11.28"]
[Round "7.18"]
[White "Xiao, Yiyi"]
[Black "Balashov, Yuri S"]
[Result "1-0"]
[WhiteElo "2306"]
[BlackElo "2465"]
[PlyCount "75"]
[EventDate "2019.11.26"]
[EventType "team-tourn"]
[EventCountry "CHN"]
[TimeControl "1500+10"]
[WhiteClock "0:06:26"]
[BlackClock "0:07:05"]

1. d4 {[%emt 0:00:05]} d5 {[%emt 0:00:00]} 2. c4 {[%emt 0:00:06]} e6 {[%emt 0:00:15]} 3. Nf3 {[%emt 0:00:12]} Nf6 {[%emt 0:00:39]} 4. g3 {[%emt 0:00:05]} Be7 {[%emt 0:00:33]} 5. Bg2 {[%emt 0:00:05]} Nbd7 {[%emt 0:00:45]} 6. O-O {[%emt 0:00:13]} O-O {[%emt 0:00:12]} 7. Qc2 {[%emt 0:00:16]} c6 {[%emt 0:00:41]} 8. Nbd2 {[%emt 0:00:12]} b6 {[%emt 0:01:00]} 9. e4 {[%emt 0:00:45]} h6 {[%emt 0:02:09]} 10. e5 {[%emt 0:00:22]} Nh7 {[%emt 0:00:30]} 11. h4 {[%emt 0:01:38]} Ba6 {[%emt 0:01:32]} 12. Re1 {[%emt 0:00:44]} Rc8 {[%emt 0:00:37]} 13. cxd5 {[%emt 0:01:50]} cxd5 {[%emt 0:00:43]} 14. Qa4 {[%emt 0:00:03]} Bc4 {[%emt 0:03:31]} 15. Nf1 {[%emt 0:01:11]} a5 {[%emt 0:01:28]} 16. Qd1 {[%emt 0:01:21]} Re8 {[%emt 0:01:02]} 17. Ne3 {[%emt 0:00:24]} Ba6 {[%emt 0:00:32]} 18. Bd2 {[%emt 0:01:16]} f6 {[%emt 0:01:05]} 19. exf6 {[%emt 0:00:37]} Nhxf6 {[%emt 0:00:22]} 20. Ne5 {[%emt 0:00:04]} Nxe5 {[%emt 0:00:24]} 21. dxe5 {[%emt 0:00:04]} Nd7 {[%emt 0:00:33]} 22. Qh5 {[%emt 0:02:34]} Rf8 {[%emt 0:00:59]} 23. Qg6 {[%emt 0:05:42]} Rc6 {[%emt 0:02:00]} 24. Nxd5 {[%emt 0:01:19]} Qe8 {[%emt 0:01:08]} 25. Qxe8 {[%emt 0:00:13]} Rxe8 {[%emt 0:00:04]} 26. Nxe7+ {[%emt 0:00:04]} Rxe7 {[%emt 0:00:06]} 27. Bxc6 {[%emt 0:00:05]} Nf8 {[%emt 0:00:06]} 28. Rad1 {[%emt 0:00:18]} Kh7 {[%emt 0:00:20]} 29. Be3 {[%emt 0:00:07]} b5 {[%emt 0:00:13]} 30. Be4+ {[%emt 0:00:24]} g6 {[%emt 0:00:11]} 31. Bc5 {[%emt 0:00:18]} Rf7 {[%emt 0:00:11]} 32. h5 {[%emt 0:00:12]} b4 {[%emt 0:00:12]} 33. Rd8 {[%emt 0:00:31]} Nd7 {[%emt 0:00:19]} 34. hxg6+ {[%emt 0:00:10]} Kg7 {[%emt 0:00:14]} 35. gxf7 {[%emt 0:00:20]} Kxf7 {[%emt 0:00:00]} 36. Rxd7+ {[%emt 0:00:07]} Ke8 {[%emt 0:00:03]} 37. Red1 {[%emt 0:00:13]} Bb5 {[%emt 0:00:05]} 38. Bg6# {[%emt 0:00:05]} 1-0

[Event "World Prestigious University 2019"]
[Site "Tianjin"]
[Date "2019.11.28"]
[Round "8.1"]
[White "TannerAustin, McNamara"]
[Black "Bibby, Simon"]
[Result "0-1"]
[WhiteElo "1983"]
[BlackElo "2167"]
[PlyCount "78"]
[EventDate "2019.11.26"]
[EventType "team-tourn"]
[EventCountry "CHN"]
[TimeControl "1500+10"]
[WhiteClock "0:02:28"]
[BlackClock "0:00:12"]

1. d4 {[%emt 0:00:00]} d6 {[%emt 0:00:00]} 2. Nf3 {[%emt 0:00:00]} g6 {[%emt 0:00:00]} 3. c4 {[%emt 0:00:10]} Bg7 {[%emt 0:00:00]} 4. Nc3 {[%emt 0:00:03]} e5 {[%emt 0:00:00]} 5. d5 {[%emt 0:00:07]} f5 {[%emt 0:00:00]} 6. e4 {[%emt 0:00:07]} Nf6 {[%emt 0:00:02]} 7. Bd3 {[%emt 0:00:05]} O-O {[%emt 0:00:39]} 8. O-O {[%emt 0:03:48]} Na6 {[%emt 0:01:45]} 9. Nd2 {[%emt 0:02:36]} f4 {[%emt 0:00:54]} 10. Rb1 {[%emt 0:01:48]} g5 {[%emt 0:00:22]} 11. b4 {[%emt 0:01:22]} g4 {[%emt 0:00:24]} 12. c5 {[%emt 0:00:45]} Ne8 {[%emt 0:04:48]} 13. Bxa6 {[%emt 0:02:22]} bxa6 {[%emt 0:00:01]} 14. Nc4 {[%emt 0:00:02]} Rf6 {[%emt 0:00:56]} 15. Rb3 {[%emt 0:01:30]} Bf8 {[%emt 0:03:50]} 16. cxd6 {[%emt 0:03:53]} Bxd6 {[%emt 0:01:06]} 17. Nxd6 {[%emt 0:02:20]} Nxd6 {[%emt 0:00:19]} 18. g3 {[%emt 0:00:16]} Rh6 {[%emt 0:00:33]} 19. h4 {[%emt 0:00:55]} gxh3 {[%emt 0:01:00]} 20. Kh2 {[%emt 0:00:10]} Rg6 {[%emt 0:01:46]} 21. Qh5 {[%emt 0:01:33]} Nf7 {[%emt 0:02:15]} 22. Qe2 {[%emt 0:01:20]} Bg4 {[%emt 0:00:56]} 23. Qc4 {[%emt 0:00:10]} Bf3 {[%emt 0:01:40]} 24. Rg1 {[%emt 0:01:48]} Bg2 {[%emt 0:00:29]} 25. gxf4 {[%emt 0:00:16]} Qh4 {[%emt 0:00:23]} 26. f5 {[%emt 0:00:45]} Qxf2 {[%emt 0:00:11]} 27. fxg6 {[%emt 0:00:38]} Bf1+ {[%emt 0:00:22]} 28. Kh1 {[%emt 0:00:01]} Bxc4 {[%emt 0:00:14]} 29. gxf7+ {[%emt 0:00:18]} Kxf7 {[%emt 0:00:00]} 30. Nd1 {[%emt 0:00:05]} Qe2 {[%emt 0:01:48]} 31. Re3 {[%emt 0:00:16]} Qh5 {[%emt 0:00:02]} 32. Reg3 {[%emt 0:00:05]} Rf8 {[%emt 0:00:19]} 33. Ne3 {[%emt 0:00:18]} Bd3 {[%emt 0:00:37]} 34. Ng4 {[%emt 0:00:29]} Ke7 {[%emt 0:00:26]} 35. Rxd3 {[%emt 0:00:07]} h2 {[%emt 0:00:12]} 36. Re1 {[%emt 0:00:18]} Qxg4 {[%emt 0:00:05]} 37. b5 {[%emt 0:00:04]} Rg8 {[%emt 0:00:16]} 38. Ba3+ {[%emt 0:00:12]} Kd7 {[%emt 0:00:05]} 39. Rd2 {[%emt 0:00:16]} Qg1+ {[%emt 0:00:17]} 0-1

[Event "World Prestigious University 2019"]
[Site "Tianjin"]
[Date "2019.11.28"]
[Round "8.2"]
[White "Hirao, Satoshi"]
[Black "Lei, Sean"]
[Result "1-0"]
[WhiteElo "1958"]
[BlackElo "1895"]
[PlyCount "71"]
[EventDate "2019.11.26"]
[EventType "team-tourn"]
[EventCountry "CHN"]
[TimeControl "1500+10"]
[WhiteClock "0:01:21"]
[BlackClock "0:00:13"]

1. e4 {[%emt 0:00:00]} d6 {[%emt 0:00:00]} 2. d4 {[%emt 0:00:00]} Nf6 {[%emt 0:00:00]} 3. Nc3 {[%emt 0:00:00]} Nbd7 {[%emt 0:00:00]} 4. Nf3 {[%emt 0:00:03]} e5 {[%emt 0:00:00]} 5. Bc4 {[%emt 0:00:09]} Be7 {[%emt 0:00:00]} 6. O-O {[%emt 0:00:05]} O-O {[%emt 0:00:00]} 7. Re1 {[%emt 0:00:04]} c6 {[%emt 0:00:01]} 8. a4 {[%emt 0:00:13]} b6 {[%emt 0:00:02]} 9. Ba2 {[%emt 0:00:25]} a6 {[%emt 0:00:03]} 10. Bg5 {[%emt 0:00:19]} Rb8 {[%emt 0:00:07]} 11. Nh4 {[%emt 0:00:11]} h6 {[%emt 0:05:06]} 12. Be3 {[%emt 0:04:40]} exd4 {[%emt 0:03:56]} 13. Bxd4 {[%emt 0:02:19]} Nc5 {[%emt 0:02:33]} 14. Ng6 {[%emt 0:04:30]} Re8 {[%emt 0:03:27]} 15. e5 {[%emt 0:00:31]} Ng4 {[%emt 0:04:28]} 16. Nxe7+ {[%emt 0:02:56]} Rxe7 {[%emt 0:01:43]} 17. e6 {[%emt 0:05:09]} f5 {[%emt 0:00:04]} 18. h3 {[%emt 0:00:27]} Nf6 {[%emt 0:00:09]} 19. Bxf6 {[%emt 0:01:33]} gxf6 {[%emt 0:00:01]} 20. Qh5 {[%emt 0:01:48]} d5 {[%emt 0:01:35]} 21. Qg6+ {[%emt 0:01:36]} Rg7 {[%emt 0:00:06]} 22. Qxf5 {[%emt 0:00:07]} Rg5 {[%emt 0:00:19]} 23. Qf4 {[%emt 0:00:54]} Rb7 {[%emt 0:00:46]} 24. b4 {[%emt 0:00:40]} Nxe6 {[%emt 0:00:07]} 25. Qd2 {[%emt 0:00:06]} Rbg7 {[%emt 0:00:05]} 26. g3 {[%emt 0:00:03]} Qf8 {[%emt 0:00:34]} 27. h4 {[%emt 0:00:18]} Rg4 {[%emt 0:00:20]} 28. Nxd5 {[%emt 0:00:07]} cxd5 {[%emt 0:00:16]} 29. Bxd5 {[%emt 0:00:02]} Re7 {[%emt 0:00:47]} 30. Qe2 {[%emt 0:00:01]} Rd4 {[%emt 0:01:03]} 31. Rad1 {[%emt 0:00:19]} Rxd1 32. Qxd1 Kh8 {[%emt 0:00:56]} 33. Qe2 {[%emt 0:00:22]} Qd8 {[%emt 0:00:32]} 34. c4 {[%emt 0:00:10]} Re8 {[%emt 0:00:13]} 35. Qh5 {[%emt 0:00:18]} Kg7 {[%emt 0:00:10]} 36. Re4 {[%emt 0:00:22]} 1-0